fUST/lending_fUST_20240430
["ID","MTS","AMOUNT","RATE_DAILY","PERIOD"]
[324955332,1714465839829,-151.0,0.0002763,2]
[324955333,1714465839838,-921.307316,0.0002763,2]
[324955334,1714465839847,-572.814396,0.0002763,2]
[324955335,1714465839857,-921.307316,0.0002763,2]
[324955336,1714465839866,-3579.881148,0.0002763,2]
[324955337,1714465839875,-3579.881148,0.0002763,2]
[324955338,1714465839884,-644.114693,0.0002763,2]
[324955339,1714465839893,-644.114693,0.0002763,2]
[324955340,1714465839902,-151.214711,0.0002763,2]
[324955341,1714465839911,-151.0,0.0002763,2]
[324955342,1714465839920,-151.298486,0.0002763,2]
[324955343,1714465839929,-3149.40616,0.0002763,2]
[324955344,1714465839939,-3149.40616,0.0002763,2]
[324955345,1714465839948,-643.461157,0.0002763,2]
[324955346,1714465839957,-151.0,0.0002763,2]
[324955347,1714465839966,-643.461157,0.0002763,2]
[324955348,1714465839975,-154.79876161,0.00027646,2]
[324955349,1714465839985,-2000.0,0.00027646,2]
[324955350,1714465839997,-154.79876161,0.00027646,2]
[324955351,1714465840006,-1452.62675219,0.00027646,2]
[324955352,1714465840015,-151.0,0.00027646,2]
[324955353,1714465840024,-151.0,0.00027646,2]
[324955354,1714465840033,-151.0,0.00027646,2]
[324955355,1714465840042,-176.275583,0.00027646,2]
[324955356,1714465840051,-176.275583,0.00027646,2]
[324955357,1714465840066,-532.52328299,0.00027651,2]
[324955358,1714465840075,-157.73975448,0.00027907,2]
[324955359,1714465840084,-532.52328299,0.00027945,2]
[324955360,1714465840093,-220.93587945,0.00028,2]
[324955361,1714465840103,-520.88755486,0.00028,2]
[324955362,1714465840112,-5000.0,0.00028,5]
[324955363,1714465840121,-166.666666,0.00028038,2]
[324955364,1714465840130,-150.0,0.00028042,2]
[324955365,1714465840141,-620.00000002,0.00028163,2]
[324955366,1714465840151,-1096.181492,0.000282,7]
[324955367,1714465840160,-1214.6,0.00028207,3]
[324955368,1714465840168,-152.79752244,0.00028263,2]
[324955369,1714465840178,-620.00000001,0.00028382,2]
[324955370,1714465840187,-532.52328299,0.00028396,2]
[324955371,1714465840196,-620.00358676,0.00028453,2]
[324955372,1714465840205,-174.66907383,0.00028481,4]
[324955373,1714465840214,-1613.0,0.00028484,2]
[324955374,1714465840223,-405.27895,0.00028493,2]
[324955375,1714465840232,-336.157645,0.00028493,2]
[324955376,1714465840241,-155.21372883,0.00028614,2]
[324955377,1714465840252,-150.0,0.00028629,2]
[324955378,1714465840261,-155.21372883,0.00028661,2]
[324955379,1714465840270,-166.666666,0.00028679,2]
[324955380,1714465840279,-1000.0,0.000287,7]
[324955381,1714465840289,-152.90057792,0.00028743,2]
[324955382,1714465840298,-11023.37802071,0.0002876,2]
[324955383,1714465840307,-474024.01455057,0.0002876,2]
[324955384,1714465840316,-151.0,0.0002876,2]
[324955385,1714465840325,-151.0,0.0002876,2]
[324955386,1714465840334,-481.500133,0.0002876,2]
[324955387,1714465840343,-481.500133,0.0002876,2]
[324955388,1714465840352,-287.463919,0.0002876,2]
[324955389,1714465840361,-287.463919,0.0002876,2]
[324955390,1714465840371,-151.0,0.0002876,2]
[324955391,1714465840379,-151.0,0.0002876,2]
[324955392,1714465840389,-151.0,0.0002876,2]
[324955393,1714465840398,-241.674438,0.0002876,2]
[324955394,1714465840407,-241.674438,0.0002876,2]
[324955395,1714465840416,-176.275583,0.0002876,2]
[324955396,1714465840427,-176.275583,0.0002876,2]
[324955397,1714465840436,-151.0,0.0002876,2]
[324955398,1714465840446,-1183.410668,0.0002876,2]
[324955399,1714465840455,-1183.410668,0.0002876,2]
[324955400,1714465840463,-282.553716,0.0002876,2]
[324955401,1714465840472,-282.553716,0.0002876,2]
[324955402,1714465840481,-151.0,0.0002876,2]
[324955403,1714465840491,-516.200641,0.0002876,2]
[324955404,1714465840502,-516.200641,0.0002876,2]
[324955405,1714465840512,-151.0,0.0002876,2]
[324955406,1714465840521,-151.0,0.0002876,2]
[324955407,1714465840532,-1596.337838,0.0002876,2]
[324955408,1714465840541,-151.0,0.0002876,2]
[324955409,1714465840550,-1596.337838,0.0002876,2]
[324955410,1714465840559,-151.0,0.0002876,2]
[324955411,1714465840568,-151.0,0.0002876,2]
[324955412,1714465840577,-151.0,0.0002876,2]
[324955413,1714465840587,-172.877711,0.0002876,2]
[324955414,1714465840596,-172.877711,0.0002876,2]
[324955415,1714465840605,-151.0,0.0002876,2]
[324955416,1714465840614,-151.0,0.0002876,2]
[324955417,1714465840624,-581.433656,0.0002876,2]
[324955418,1714465840633,-151.0,0.0002876,2]
[324955419,1714465840641,-581.433656,0.0002876,2]
[324955420,1714465840651,-152.107121,0.0002876,2]
[324955421,1714465840660,-572.814396,0.0002876,2]
[324955422,1714465840669,-151.0,0.0002876,2]
[324955423,1714465840678,-921.307316,0.0002876,2]
[324955424,1714465840687,-572.814396,0.0002876,2]
[324955425,1714465840696,-921.307316,0.0002876,2]
[324955426,1714465840706,-3579.881148,0.0002876,2]
[324955427,1714465840715,-3579.881148,0.0002876,2]
[324955428,1714465840724,-644.114693,0.0002876,2]
[324955429,1714465840733,-644.114693,0.0002876,2]
[324955430,1714465840744,-151.0,0.0002876,2]
[324955431,1714465840754,-3149.40616,0.0002876,2]
[324955432,1714465840762,-3149.40616,0.0002876,2]
[324955433,1714465840771,-643.461157,0.0002876,2]
[324955434,1714465840781,-643.461157,0.0002876,2]
[324955435,1714465840790,-28724.8364,0.00028783,30]
[324955436,1714465840799,-5000.0,0.00029,5]
[324955437,1714465840808,-152.79752244,0.00029014,2]
[324955438,1714465840818,-153.8921486,0.00029087,2]
[324955439,1714465840827,-157.73975448,0.00029198,2]
[324955440,1714465840837,-1000.0,0.000292,7]
[324955441,1714465840846,-166.666666,0.00029321,2]
[324955442,1714465840855,-203.8071857,0.00029534,2]
[324955443,1714465840866,-203.8071857,0.00029534,2]
[324955444,1714465840875,-203.8071857,0.00029534,2]
[324955445,1714465840885,-203.8071857,0.00029534,2]
[324955446,1714465840894,-152.90057792,0.00029562,2]
[324955447,1714465840904,-620.0,0.00029571,2]
[324955448,1714465840914,-1214.6,0.00029628,3]
[324955449,1714465840924,-1000.0,0.000297,7]
[324955450,1714465840935,-532.52328299,0.0002984,2]
[324955451,1714465840945,-620.00017934,0.00029875,2]
[324955452,1714465840955,-155.21372883,0.00029897,2]
[324955453,1714465840965,-250.0,0.000299,2]
[324955454,1714465840975,-250.0,0.000299,2]
[324955455,1714465840986,-166.666666,0.00029962,2]
[324955456,1714465841000,-155.21372883,0.00029993,2]
[324955457,1714465841010,-154.79876161,0.0003,4]
[324955458,1714465841022,-223.47367324,0.0003,2]
[324955459,1714465841032,-1330.0170423,0.0003,4]
[324955460,1714465841042,-188.46262606,0.0003,4]
[324955461,1714465841052,-212.54437456,0.0003,4]
[324955462,1714465841063,-5000.0,0.0003,7]
[324955463,1714465841072,-168.0,0.0003,2]
[324955464,1714465841088,-158.32775516,0.00030017,7]
[324955465,1714465841098,-1000.0,0.000302,7]
[324955466,1714465841107,-153.0,0.00030356,2]
[324955467,1714465841116,-153.0,0.00030356,2]
[324955468,1714465841126,-154.5413246,0.00030356,2]
[324955469,1714465841135,-153.0,0.00030356,2]
[324955470,1714465841144,-155.331308,0.00030356,2]
[324955471,1714465841155,-153.0,0.00030356,2]
[324955472,1714465841164,-153.0,0.00030356,2]
[324955473,1714465841173,-153.0,0.00030356,2]
[324955474,1714465841182,-153.0,0.00030356,2]
[324955475,1714465841191,-153.0,0.00030356,2]
[324955476,1714465841201,-153.0,0.00030356,2]
[324955477,1714465841210,-153.0,0.00030356,2]
[324955478,1714465841219,-153.0,0.00030356,2]
[324955479,1714465841227,-153.0,0.00030356,2]
[324955480,1714465841237,-153.0,0.00030356,2]
[324955481,1714465841251,-153.0,0.00030356,2]
[324955482,1714465841260,-153.0,0.00030356,2]
[324955483,1714465841269,-153.0,0.00030356,2]
[324955484,1714465841279,-417.0,0.00030467,2]
[324955485,1714465841288,-532.52328299,0.00030486,7]
[324955486,1714465841297,-166.666666,0.00030603,2]
[324955487,1714465841306,-152.79752244,0.00030692,7]
[324955488,1714465841315,-1000.0,0.000307,7]
[324955489,1714465841325,-1110.22398594,0.00031,2]
[324955490,1714465841334,-150.0,0.00031042,2]
[324955491,1714465841343,-1214.6,0.00031049,5]
[324955492,1714465841353,-620.0,0.0003105,2]
[324955493,1714465841362,-152.79752244,0.00031141,7]
[324955494,1714465841371,-153.0,0.00031178,2]
[324955495,1714465841381,-1000.0,0.000312,7]
[324955496,1714465841390,-157.73975448,0.00031286,7]
[324955497,1714465841400,-155.21372883,0.00031329,7]
[324955498,1714465841410,-2258.0,0.00031332,2]
[324955499,1714465841420,-620.00000897,0.00031369,2]
[324955500,1714465841429,-155.21372883,0.0003141,7]
[324955501,1714465841438,-2231.43690166,0.00031467,4]
[324955502,1714465841447,-407.6143714,0.00031507,2]
[324955503,1714465841456,-153.6279903,0.00031507,2]
[324955504,1714465841465,-153.0,0.00031507,2]
[324955505,1714465841475,-153.0,0.00031507,2]
[324955506,1714465841484,-153.0,0.00031507,2]
[324955507,1714465841495,-153.0,0.00031507,2]
[324955508,1714465841506,-153.0,0.00031507,2]
[324955509,1714465841515,-153.0,0.00031507,2]
[324955510,1714465841525,-153.0,0.00031507,2]
[324955511,1714465841534,-153.0,0.00031507,2]
[324955512,1714465841543,-153.0,0.00031507,2]
[324955514,1714465841552,-153.0,0.00031507,2]
[324955515,1714465841562,-153.0,0.00031507,2]
[324955516,1714465841571,-153.0,0.00031507,2]
[324955517,1714465841580,-153.0,0.00031507,2]
[324955518,1714465841590,-153.0,0.00031507,2]
[324955519,1714465841599,-153.0,0.00031507,2]
[324955520,1714465841608,-153.0,0.00031507,2]
[324955521,1714465841618,-153.0,0.00031507,2]
[324955522,1714465841627,-153.0,0.00031507,2]
[324955523,1714465841637,-153.0,0.00031507,2]
[324955524,1714465841647,-153.0,0.00031507,2]
[324955526,1714465841656,-153.0,0.00031507,2]
[324955528,1714465841665,-153.0,0.00031507,2]
[324955529,1714465841674,-153.0,0.00031507,2]
[324955530,1714465841683,-153.0,0.00031507,2]
[324955531,1714465841692,-153.0,0.00031507,2]
[324955532,1714465841701,-153.0,0.00031507,2]
[324955533,1714465841711,-153.0,0.00031507,2]
[324955534,1714465841720,-153.0,0.00031507,2]
[324955535,1714465841729,-153.0,0.00031507,2]
[324955536,1714465841738,-153.0,0.00031507,2]
[324955537,1714465841750,-153.0,0.00031507,2]
[324955538,1714465841759,-153.0,0.00031507,2]
[324955539,1714465841768,-153.0,0.00031507,2]
[324955540,1714465841778,-153.0,0.00031507,2]
[324955541,1714465841787,-153.0,0.00031507,2]
[324955542,1714465841796,-153.0,0.00031507,2]
[324955543,1714465841805,-153.0,0.00031507,2]
[324955544,1714465841814,-153.0,0.00031507,2]
[324955545,1714465841823,-153.0,0.00031507,2]
[324955546,1714465841832,-153.0,0.00031507,2]
[324955547,1714465841842,-203.8071857,0.00031507,2]
[324955548,1714465841851,-4521.84287996,0.00031578,7]
[324955549,1714465841861,-155.21372883,0.00031683,7]
[324955550,1714465841870,-152.90057792,0.00031689,7]
[324955551,1714465841879,-287.0,0.000317,4]
[324955552,1714465841888,-150.0,0.000317,2]
[324955553,1714465841898,-1000.0,0.000317,7]
[324955554,1714465841908,-156.36827091,0.00031731,3]
[324955555,1714465841917,-21771.52569053,0.00031778,2]
[324955561,1714465842191,-510.67301142,0.00031778,2]
[324955673,1714465843372,-402.65913262,0.000199,2]
[324955758,1714465847437,-1597.34086738,0.000199,2]
[324955760,1714465847447,-3566.72803589,0.00020913,2]
[324955762,1714465847455,-150.498,0.00028104,2]
[324955764,1714465847464,-1536.35,0.0002875,3]
[324955766,1714465847474,-3072.7,0.0003012,3]
[324955768,1714465847483,-150.0,0.00031104,2]
[324955770,1714465847492,-61256.30262838,0.00031778,2]
[324955905,1714466249985,604.0,0.000225,30]
[324955908,1714466826179,-300.0,0.00017992,2]
[324955909,1714466826200,-5856.4565872,0.00017992,2]
[324955910,1714466826223,-24900.0,0.00017993,2]
[324955911,1714466826243,-168.5638721,0.00017994,2]
[324955912,1714466826263,-538.89336842,0.00018993,2]
[324955913,1714466826284,-1091.35500072,0.00018993,2]
[324955914,1714466826303,-1877.98244555,0.00018993,2]
[324955915,1714466826322,-157.80708891,0.00018993,2]
[324955916,1714466826341,-362.18450158,0.00018993,2]
[324955917,1714466826361,-1621.09215219,0.00018993,2]
[324955918,1714466826381,-1202.53293628,0.00018994,2]
[324955919,1714466826405,-8377.59175511,0.00018994,2]
[324955920,1714466826424,-160.401784,0.00019178,2]
[324955921,1714466826445,-420.0,0.00019791,2]
[324955922,1714466826466,-274.98102988,0.000199,2]
[324955923,1714466826487,-724.04157012,0.000199,2]
[324955924,1714466826506,-768.17,0.0001999,3]
[324955925,1714466826525,-384.09,0.0001999,3]
[324955926,1714466826544,-192.04,0.0001999,3]
[324955927,1714466826563,-576.17,0.0001999,3]
[324955928,1714466826581,-155.04940114,0.00019998,2]
[324955929,1714466826600,-161.65844721,0.00019998,2]
[324955930,1714466826620,-154.84515485,0.00019998,2]
[324955931,1714466826639,-980.56647278,0.00019998,2]
[324955932,1714466826659,-497.39509606,0.00019998,2]
[324955933,1714466826677,-154.81422293,0.00019998,2]
[324955934,1714466826698,-884.2224895,0.00019998,2]
[324955935,1714466826719,-308.5768874,0.00019998,2]
[324955936,1714466826738,-384.5867347,0.00019999,2]
[324955937,1714466826756,-228.44373895,0.00019999,2]
[324955938,1714466826776,-10146.51017242,0.0002,2]
[324955939,1714466849199,-3051.21388193,0.00019999,2]
[324955940,1714466849221,-41147.62346703,0.0002,2]
[324955941,1714466849241,-165.41143922,0.0002,2]
[324955942,1714466849261,-400.0,0.0002,2]
[324955943,1714466849280,-67426.19859378,0.0002,2]
[324955944,1714466849299,-154.78330338,0.0002,2]
[324955945,1714466849318,-278.367607,0.0002,2]
[324955946,1714466849337,-329.99389325,0.0002,2]
[324955947,1714466849356,-463.94089548,0.0002,2]
[324955948,1714466849376,-154.78330338,0.0002,2]
[324955949,1714466849400,-184.30166315,0.0002,2]
[324955989,1714467032215,-3051.21388193,0.00019899,2]
[324955990,1714467032224,-2000.0,0.000199,2]
[324955992,1714467032234,-448.1,0.0001999,3]
[324955993,1714467032243,-224.05,0.0001999,3]
[324955994,1714467032253,-672.15,0.0001999,3]
[324955995,1714467032262,-275.71,0.00019998,2]
[324955997,1714467032271,-300.0,0.00019999,2]
[324955998,1714467032280,-70155.7975842,0.0002,2]
[324956028,1714467038184,-367.05833146,0.0002,2]
[324956029,1714467038195,-9292.84242119,0.0002,2]
[324956030,1714467038205,-525.07533493,0.0002,4]
[324956031,1714467038214,-154.78330338,0.0002,2]
[324956032,1714467038224,-12577.85872711,0.0002,2]
[324956033,1714467038234,-200.0,0.0002,2]
[324956034,1714467038243,-258.1276112,0.0002,2]
[324956035,1714467038253,-154.79876161,0.0002,2]
[324956036,1714467038263,-329.99389325,0.0002,2]
[324956037,1714467038273,-300.07781609,0.0002,2]
[324956038,1714467038283,-67426.19859378,0.0002,2]
[324956039,1714467038293,-241.71320654,0.0002,2]
[324956040,1714467038303,-154.78330338,0.0002,2]
[324956041,1714467038312,-841.05545558,0.000204,2]
[324956042,1714467038322,-532.56495903,0.000208,2]
[324956043,1714467038331,-896.2,0.0002136,3]
[324956044,1714467038341,-448.1,0.0002136,3]
[324956045,1714467038350,-10000.0,0.00021918,2]
[324956046,1714467038359,-420.0,0.00021999,2]
[324956047,1714467038370,-366.72502704,0.00022,2]
[324956048,1714467038380,-197.21049635,0.00022,2]
[324956049,1714467038389,-620.00017932,0.00022238,2]
[324956050,1714467038399,-165.414129,0.00022466,2]
[324956051,1714467038409,-364.751055,0.00022466,2]
[324956052,1714467038418,-2000.0,0.000225,2]
[324956053,1714467038428,-154.78330338,0.000225,2]
[324956054,1714467038438,-10598.56422738,0.000225,2]
[324956055,1714467038451,-3002.4030076,0.000225,2]
[324956057,1714467038461,-154.78330338,0.000225,2]
[324956059,1714467038470,-2000.0,0.000225,2]
[324956060,1714467038479,-2000.0,0.000225,2]
[324956061,1714467038489,-2000.0,0.000225,2]
[324956062,1714467038498,-3956.05028615,0.000225,10]
[324956063,1714467038507,-1370.77204514,0.00023,2]
[324956064,1714467038517,-620.00000897,0.00023349,2]
[324956065,1714467038526,-693.45686249,0.00024,2]
[324956066,1714467038538,-587.0,0.00024199,2]
[324956067,1714467038548,-620.00000045,0.00024517,2]
[324956068,1714467038557,-500.0,0.00024657,2]
[324956069,1714467038567,-380.0,0.00024658,2]
[324956070,1714467038576,-153.89214861,0.00024978,2]
[324956071,1714467038585,-299.77223909,0.00025,2]
[324956072,1714467038595,-154.78330338,0.00025,2]
[324956073,1714467038604,-154.78330338,0.00025,2]
[324956074,1714467038614,-301.91203272,0.00025,2]
[324956075,1714467038623,-152.90057792,0.00025141,2]
[324956076,1714467038633,-155.21372883,0.00025236,2]
[324956077,1714467038642,-152.79752245,0.00025323,2]
[324956078,1714467038651,-841.05545558,0.000254,2]
[324956079,1714467038661,-152.90057792,0.00025489,2]
[324956080,1714467038670,-152.79752245,0.00025561,2]
[324956081,1714467038679,-620.00000002,0.00025743,2]
[324956082,1714467038688,-5000.0,0.00026,2]
[324956083,1714467038698,-4466.0,0.00026,2]
[324956084,1714467038707,-152.79752245,0.00026048,2]
[324956085,1714467038716,-155.21372883,0.00026445,2]
[324956086,1714467038725,-823.0,0.00026619,2]
[324956087,1714467038734,-153.89214861,0.00026735,2]
[324956088,1714467038744,-155.21372883,0.00026904,2]
[324956089,1714467038753,-355.01552199,0.00026957,2]
[324956090,1714467038762,-155.21372883,0.00026991,2]
[324956091,1714467038772,-8529.21181525,0.00027,2]
[324956092,1714467038781,-154.78330338,0.00027011,3]
[324956093,1714467038791,-152.79752245,0.00027016,2]
[324956094,1714467038800,-620.0,0.0002703,2]
[324956095,1714467038808,-152.90057792,0.00027079,2]
[324956096,1714467038818,-155.21372883,0.00027386,2]
[324956097,1714467038828,-166.666666,0.00027397,2]
[324956098,1714467038837,-157.73975448,0.00027485,2]
[324956099,1714467038997,-152.90057792,0.00027734,2]
[324956100,1714467039011,-355.01552199,0.00027808,2]
[324956101,1714467039021,-220.93587945,0.00028,2]
[324956102,1714467039031,-157.73975448,0.00028001,2]
[324956103,1714467039041,-166.666666,0.00028038,2]
[324956104,1714467039050,-152.79752245,0.00028112,2]
[324956105,1714467039060,-1113.4,0.00028145,3]
[324956106,1714467039069,-152.90057792,0.00028232,2]
[324956107,1714467039078,-620.0,0.00028381,2]
[324956108,1714467039087,-355.01552199,0.00028401,2]
[324956109,1714467039096,-152.90057792,0.00028454,2]
[324956110,1714467039106,-364.751055,0.00028493,2]
[324956111,1714467039119,-417.0,0.00028554,2]
[324956112,1714467039128,-150.0,0.00028554,2]
[324956113,1714467039137,-211.042,0.00028554,2]
[324956114,1714467039147,-224.908,0.00028554,2]
[324956115,1714467039156,-153.89214861,0.00028663,2]
[324956116,1714467039166,-166.666666,0.00028679,2]
[324956117,1714467039176,-28724.8364,0.00028695,30]
[324956118,1714467039186,-158.32775516,0.00028739,2]
[324956119,1714467039195,-150.53295523,0.00028823,2]
[324956120,1714467039204,-153.89214861,0.00028857,2]
[324956121,1714467039214,-3880.11978972,0.00029,5]
[324956122,1714467039401,-1119.88021028,0.00029,5]
[324956123,1714467039410,-153.89214861,0.0002909,2]
[324956124,1714467039419,-166.98581,0.00029099,2]
[324956125,1714467039429,-339.95982419,0.00029179,2]
[324956126,1714467039440,-15.0556978,0.00029179,2]
[324956127,1714467039450,-1000.0,0.000292,7]
[324956128,1714467039462,-1152.0,0.00029281,2]
[324956129,1714467039472,-152.90057792,0.00029283,2]
[324956130,1714467039481,-152.79752245,0.00029304,2]
[324956131,1714467039490,-166.666666,0.00029321,2]
[324956132,1714467039500,-152.90057792,0.00029381,2]
[324956133,1714467039509,-155.21372883,0.00029396,2]
[324956134,1714467039519,-155.21372883,0.00029505,2]
[324956135,1714467039530,-1113.4,0.00029571,3]
[324956136,1714467039539,-1000.0,0.000297,7]
[324956137,1714467039550,-152.90057792,0.00029732,2]
[324956138,1714467039559,-620.0,0.00029801,2]
[324956139,1714467039569,-150.0,0.00029823,2]
[324956141,1714467039578,-500.0,0.000299,2]
[324956142,1714467039587,-166.666666,0.00029962,2]
[324956144,1714467039595,-154.78330338,0.0003,4]
[324956146,1714467039605,-188.46262606,0.0003,4]
[324956147,1714467039616,-1900.02434615,0.0003,4]
[324956149,1714467039626,-212.54437456,0.0003,4]
[324956152,1714467039635,-2740.76317113,0.0003,7]
[324956170,1714467040268,-500.0320306,0.0003,7]
[324956211,1714467043322,-1759.20479827,0.0003,7]
[324956212,1714467043335,-168.0,0.0003,2]
[324956213,1714467043346,-355.01552199,0.00030077,7]
[324956214,1714467043359,-157.73975448,0.0003014,7]
[324956215,1714467043374,-355.01552199,0.0003015,7]
[324956216,1714467043386,-1000.0,0.000302,7]
[324956217,1714467043398,-166.666666,0.00030603,2]
[324956218,1714467043411,-1000.0,0.000307,7]
[324956219,1714467043424,-150.0,0.00030823,2]
[324956222,1714467043436,-152.90057792,0.0003093,7]
[324956225,1714467043451,-355.01552199,0.00030958,7]
[324956227,1714467043465,-152.79752245,0.00030989,7]
[324956228,1714467043476,-1113.4,0.00030998,3]
[324956229,1714467043489,-1110.25958769,0.00031,2]
[324956230,1714467043501,-5000.0,0.00031,2]
[324956232,1714467043512,-1000.0,0.000312,7]
[324956234,1714467043523,-155.21372883,0.00031222,7]
[324956236,1714467043533,-620.0,0.00031291,2]
[324956238,1714467043545,-152.79752245,0.00031433,7]
[324956240,1714467043557,-155.02140653,0.0003146,4]
[324956243,1714467043568,-417.0,0.00031554,2]
[324956244,1714467043579,-150.0,0.00031554,2]
[324956245,1714467043590,-73.53009399,0.00031554,2]
[324956246,1714467043623,-0.00099283,0.00031554,2]
[324956273,1714467046065,-3051.21388193,0.00020913,2]
[324956274,1714467046077,-76.46891318,0.00031554,2]
[324956275,1714467046088,-2231.43690166,0.00031583,7]
[324956276,1714467046099,-890.88030323,0.00031678,3]
[324956277,1714467046113,-43553.11969677,0.00031678,3]
[324956278,1714467046126,-382.100535,0.00031699,2]
[324956279,1714467046137,-287.0,0.000317,4]
[324956280,1714467046148,-150.0,0.000317,2]
[324956281,1714467046159,-1000.0,0.000317,7]
[324956282,1714467046170,-355.01552199,0.00031726,7]
[324956283,1714467046181,-18283.78715624,0.00031768,3]
[324956284,1714467046195,-4454.96284376,0.00031768,3]
[324956285,1714467046207,-28888.57172061,0.00031778,7]
[324956286,1714467046220,-467.11258996,0.00031778,7]
[324956289,1714467173165,460.0,0.000225,30]
[324956292,1714467359699,717.91087502,9.999e-05,2]
[324956294,1714467388582,154.79876161,9.999e-05,2]
[324956295,1714467389191,285.07224206,9.999e-05,2]
[324956296,1714467391575,19200.42324156,9.999e-05,2]
[324956297,1714467391678,8866.82122665,9.999e-05,2]
[324956298,1714467391703,7237.43807302,9.999e-05,2]
[324956299,1714467404934,285.07224206,9.999e-05,2]
[324956300,1714467407685,4680.42042368,9.999e-05,2]
[324956301,1714467412072,513.49896732,9.999e-05,2]
[324956302,1714467412116,6797.43080098,9.999e-05,2]
[324956303,1714467422947,285.56398472,9.999e-05,2]
[324956309,1714468010600,513.49896732,9.999e-05,2]
[324956310,1714468051209,-3051.21388193,0.00015993,2]
[324956311,1714468051230,-514.30635662,0.00016,2]
[324956312,1714468051252,-324.7272653,0.00017635,2]
[324956313,1714468051271,-155.66780316,0.00017635,2]
[324956314,1714468051290,-548.37810769,0.00017636,2]
[324956315,1714468051310,-13599.83263018,0.00017637,2]
[324956349,1714468233044,-166.6666672,0.00017284,2]
[324956351,1714468233053,-544.71992819,0.00017636,2]
[324956353,1714468233068,-295.69242293,0.00017636,2]
[324956359,1714468233116,-2210.80153081,0.00017636,2]
[324956361,1714468233125,-281.15904372,0.00017637,2]
[324956363,1714468233135,-2744.06194311,0.00017637,2]
[324956695,1714468238590,-8556.10542671,0.00017637,2]
[324956696,1714468238599,-186.580556,0.00017659,2]
[324956697,1714468238609,-3000.0,0.00017675,2]
[324956698,1714468238619,-1173.4450898,0.000189,2]
[324956699,1714468238628,-2584.55126401,0.00019219,2]
[324956700,1714468238637,-457.21723132,0.00019219,2]
[324956701,1714468238646,-10252.53716053,0.00019219,2]
[324956702,1714468238655,-408.47253239,0.00019219,2]
[324956703,1714468238665,-235.64384072,0.00019219,2]
[324956704,1714468238674,-1575.6250749,0.00019219,2]
[324956705,1714468238684,-166.03083642,0.00019219,2]
[324956706,1714468238874,-155.10750708,0.0001922,2]
[324956707,1714468238884,-445.07355206,0.0001922,2]
[324956708,1714468238894,-39030.50666371,0.00019221,2]
[324956709,1714468238903,-154.84515485,0.00019225,2]
[324956710,1714468238914,-1104.98243285,0.00019225,2]
[324956711,1714468238924,-890.802326,0.00019225,2]
[324956712,1714468238934,-362.29479417,0.00019225,2]
[324956713,1714468238943,-157.93274369,0.00019225,2]
[324956714,1714468238952,-689.53034234,0.00019225,2]
[324956715,1714468238961,-155.1350636,0.00019225,2]
[324956716,1714468238971,-207.80844426,0.00019225,2]
[324956717,1714468238980,-155.07476335,0.00019225,2]
[324956718,1714468238990,-1011.78492346,0.00019225,2]
[324956719,1714468238999,-168.77657628,0.00019225,2]
[324956720,1714468239008,-1374.59990832,0.00019225,2]
[324956721,1714468239018,-266.67766271,0.00019225,2]
[324956722,1714468239027,-550.01932666,0.00019226,2]
[324956723,1714468239037,-981.56171248,0.00019226,2]
[324956724,1714468239046,-526.83448136,0.00019226,2]
[324956725,1714468239055,-549.92372763,0.000199,2]
[324956726,1714468239066,-579.23325612,0.000199,2]
[324956727,1714468239075,-2000.0,0.000199,2]
[324956728,1714468239085,-155.13000543,0.00019998,2]
[324956729,1714468239094,-1547.90345751,0.00019999,2]
[324956730,1714468239103,-180.66138684,0.00019999,2]
[324956731,1714468239111,-422.99435536,0.00019999,2]
[324956732,1714468239121,-643.17591172,0.0002,10]